bitfinex-derivatives/quotes_BTCF0:USTF0_20251009
["timestamp","ask_amount","ask_price","bid_price","bid_amount"]
[1759975438243,0.1052548,122460.0,122450.0,1.4344972]
[1759975438442,0.1052548,122460.0,122450.0,0.6948172]
[1759975438940,0.1052548,122460.0,122450.0,1.4346572]
[1759975439445,0.1396548,122460.0,122450.0,1.4346572]
[1759975440647,0.1396548,122460.0,122450.0,0.1675086]
[1759975440849,0.9004548,122460.0,122450.0,0.9063486]
[1759975441150,0.91879175,122460.0,122450.0,0.9062686]
[1759975441446,0.91879175,122460.0,122450.0,0.9064686]
[1759975441646,0.05507,122450.0,122440.0,0.5273086]
[1759975441836,0.07340695,122450.0,122440.0,1.4337772]
[1759975442849,0.15604835,122450.0,122440.0,0.7028172]
[1759975443048,0.15604835,122450.0,122440.0,1.4427772]
[1759975443749,0.15604835,122450.0,122440.0,0.7028172]
[1759975443947,0.15604835,122450.0,122440.0,1.4427772]
[1759975445748,0.15604835,122450.0,122440.0,0.7844653]
[1759975445946,0.15604835,122450.0,122440.0,0.7028172]
[1759975446249,0.15604835,122450.0,122440.0,1.4426972]
[1759975446650,0.15604835,122450.0,122440.0,0.7028172]
[1759975446852,0.15604835,122450.0,122440.0,1.4426972]
[1759975448651,0.15604835,122450.0,122440.0,1.0818972]
[1759975448853,0.15604835,122450.0,122440.0,1.4426972]
[1759975450053,0.15604835,122450.0,122440.0,1.5242653]
[1759975450648,0.15604835,122450.0,122440.0,0.7844653]
[1759975450850,0.15604835,122450.0,122440.0,1.5241853]
[1759975451050,0.04000695,122450.0,122440.0,0.9509739]
[1759975451351,0.04000695,122450.0,122440.0,2.0515739]
[1759975451553,0.12164835,122450.0,122440.0,1.2301258]
[1759975451753,0.12164835,122450.0,122440.0,1.5761739]
[1759975451955,0.12164835,122450.0,122440.0,2.3159739]
[1759975452149,0.12164835,122450.0,122440.0,1.3280172]
[1759975452352,0.15282835,122450.0,122440.0,2.0678172]
[1759975453255,0.15282835,122450.0,122440.0,1.3280172]
[1759975453457,0.15282835,122450.0,122440.0,2.0678572]
[1759975456754,0.12164835,122450.0,122440.0,1.5761739]
[1759975456959,0.12164835,122450.0,122440.0,2.3158539]
[1759975457364,0.12164835,122450.0,122440.0,1.5761739]
[1759975457653,0.12164835,122450.0,122440.0,1.8032972]
[1759975457962,0.12164835,122450.0,122440.0,1.8849453]
[1759975460859,0.12164835,122450.0,122440.0,1.8032172]
[1759975461863,0.12164835,122450.0,122440.0,1.4424172]
[1759975462362,0.15282835,122450.0,122440.0,0.7844653]
[1759975462561,0.15282835,122450.0,122440.0,1.5239853]
[1759975463656,0.12164835,122450.0,122440.0,1.5239453]
[1759975464064,0.15282835,122450.0,122440.0,0.7844653]
[1759975464265,0.15282835,122450.0,122440.0,1.4422572]
[1759975465169,0.15282835,122450.0,122440.0,0.7028172]
[1759975465369,0.15282835,122450.0,122440.0,1.42366344]
[1759975466261,0.15282835,122450.0,122440.0,0.68422344]
[1759975466466,0.21094497,122450.0,122440.0,1.42362344]
[1759975466964,0.21094497,122450.0,122440.0,0.68422344]
[1759975467269,0.21094497,122450.0,122440.0,1.0724172]
[1759975468267,0.21094497,122450.0,122440.0,1.4332172]
[1759975470770,0.15282835,122450.0,122440.0,1.4332172]
[1759975471971,0.15282835,122450.0,122440.0,1.4331772]
[1759975474075,0.15282835,122450.0,122440.0,1.3221925]
[1759975477478,0.15282835,122450.0,122440.0,0.9613925]
[1759975479579,0.15282835,122450.0,122440.0,0.2220325]
[1759975479882,0.15282835,122450.0,122440.0,0.9611125]
[1759975482378,0.15282835,122450.0,122440.0,0.2220325]
[1759975482379,0.15291539,122450.0,122440.0,0.2220325]
[1759975482581,0.1329081,122440.0,122430.0,0.3608]
[1759975482775,0.15133209,122440.0,122430.0,1.3218325]
[1759975483680,0.15133209,122440.0,122430.0,1.4034873]
[1759975484078,0.15333209,122440.0,122430.0,1.4034873]
[1759975484277,0.15433209,122440.0,122430.0,1.4054873]
[1759975485484,0.15433209,122440.0,122430.0,0.6664873]
[1759975485679,0.15433209,122440.0,122430.0,1.4054073]
[1759975487179,0.15433209,122440.0,122430.0,1.1833748]
[1759975487379,0.15433209,122440.0,122430.0,1.4054073]
[1759975487682,0.15433209,122440.0,122430.0,1.3237525]
[1759975489280,0.15433209,122440.0,122430.0,1.4054073]
[1759975491284,0.15433209,122440.0,122430.0,1.38681198]
[1759975492981,0.15433209,122440.0,122430.0,1.38677198]
[1759975494181,0.15433209,122440.0,122430.0,1.38669198]
[1759975494987,0.15433209,122440.0,122430.0,0.56623718]
[1759975495180,0.15433209,122440.0,122430.0,1.09956]
[1759975495486,0.1326448,122430.0,122420.0,0.5828325]
[1759975495784,0.15106879,122430.0,122420.0,0.9607925]
[1759975497478,0.15206879,122430.0,122420.0,0.9607925]
[1759975498177,0.15106879,122430.0,122420.0,0.9607925]
[1759975498380,0.15206879,122430.0,122420.0,0.9607925]
[1759975499378,0.15606879,122430.0,122420.0,0.9607925]
[1759975500390,0.15606879,122430.0,122420.0,0.73876]
[1759975500590,0.15606879,122430.0,122420.0,0.9607925]
[1759975501087,0.15606879,122430.0,122420.0,0.2220325]
[1759975501290,0.15606879,122430.0,122420.0,0.9608725]
[1759975501481,0.15606879,122430.0,122420.0,0.2220325]
[1759975501677,0.15606879,122430.0,122420.0,0.9608725]
[1759975502393,0.17118842,122430.0,122420.0,0.9608725]
[1759975502884,0.15606879,122430.0,122420.0,0.9608725]
[1759975503991,0.15606879,122430.0,122420.0,0.2220325]
[1759975504291,0.15606879,122430.0,122420.0,0.9608325]
[1759975507489,0.15606879,122430.0,122420.0,0.7388]
[1759975507691,0.0197,122420.0,122410.0,0.52408129]
[1759975507993,0.03812399,122420.0,122410.0,1.48483379]
[1759975508190,0.03812399,122420.0,122410.0,1.74923379]
[1759975508391,0.06900399,122420.0,122410.0,0.78848129]
[1759975508592,0.06900399,122420.0,122410.0,1.74923379]
[1759975508788,0.06900399,122420.0,122410.0,1.30676969]
[1759975508988,0.07100399,122420.0,122410.0,1.30676969]
[1759975509492,0.07100399,122420.0,122410.0,1.24050088]
[1759975509991,0.07200399,122420.0,122410.0,1.24050088]
[1759975510191,0.07200399,122420.0,122410.0,0.2220325]
[1759975510395,0.0197,122400.0,122390.0,2.19118271]
[1759975510690,0.1013748,122400.0,122390.0,2.84822571]
[1759975510884,0.1200741,122400.0,122390.0,2.33153821]
[1759975511088,0.1200741,122400.0,122390.0,3.07045821]
[1759975511689,0.1220741,122400.0,122390.0,3.07045821]
[1759975512195,0.1529541,122400.0,122390.0,1.02989821]
[1759975512791,0.1539541,122400.0,122390.0,1.04389821]
[1759975514193,0.1539541,122400.0,122390.0,0.82186571]
[1759975514389,0.1539541,122400.0,122390.0,1.04389821]
[1759975516995,0.1539541,122400.0,122390.0,1.04385821]
[1759975517597,0.1539541,122400.0,122390.0,0.30497821]
[1759975517799,0.1539541,122400.0,122390.0,1.04381821]
[1759975518700,0.1539541,122400.0,122390.0,0.30497821]
[1759975518896,0.1539541,122400.0,122390.0,1.04381821]
[1759975520797,0.1539541,122400.0,122390.0,0.08294571]
[1759975521099,0.1539541,122400.0,122390.0,1.04401821]
[1759975521497,0.5539541,122400.0,122390.0,0.08294571]
[1759975521691,0.5539541,122400.0,122390.0,0.82194571]
[1759975524700,0.5539541,122400.0,122390.0,0.82218571]
[1759975525602,0.5539541,122400.0,122390.0,0.08294571]
[1759975525802,0.5539541,122400.0,122390.0,0.82214571]
[1759975526099,0.5539541,122400.0,122390.0,0.08294571]
[1759975526299,0.5539541,122400.0,122350.0,0.00784202]
[1759975526300,0.05058,122360.0,122350.0,0.00784202]
[1759975526504,0.0692793,122360.0,122350.0,0.58351452]
[1759975526907,0.0692793,122360.0,122350.0,0.22987452]
[1759975527307,0.1360455,122360.0,122350.0,0.84807452]
[1759975527508,0.1380455,122360.0,122350.0,0.84807452]
[1759975527808,0.5380455,122360.0,122350.0,0.97119452]
[1759975528205,0.760078,122360.0,122350.0,0.00784202]
[1759975528406,0.05058,122320.0,122310.0,0.26887821]
[1759975528708,0.1201275,122320.0,122310.0,0.30155821]
[1759975529004,0.0197,122340.0,122310.0,0.6377524]
[1759975529204,0.03844581,122340.0,122330.0,0.2220325]
[1759975529400,0.03844581,122340.0,122330.0,0.303754]
[1759975529800,0.03844581,122340.0,122330.0,0.9687125]
[1759975530000,0.0197,122340.0,122330.0,0.9687125]
[1759975530515,0.0197,122340.0,122330.0,3.0098325]
[1759975530715,0.0197,122340.0,122330.0,0.2220325]
[1759975530916,0.0217,122340.0,122330.0,3.0099125]
[1759975531916,0.0227,122340.0,122330.0,3.0189125]
[1759975532304,0.0227,122340.0,122330.0,3.100634]
[1759975532506,0.0227,122340.0,122330.0,0.2310325]
[1759975532507,0.1044148,122340.0,122330.0,0.2310325]
[1759975532710,0.1044148,122340.0,122330.0,0.9775125]
[1759975533318,0.1044148,122340.0,122330.0,0.2310325]
[1759975533511,0.1044148,122340.0,122330.0,0.8807925]
[1759975533817,0.1352948,122340.0,122330.0,0.2310325]
[1759975534113,0.15400677,122340.0,122330.0,0.9774725]
[1759975534303,0.15400677,122340.0,122330.0,0.9774325]
[1759975534505,0.15400677,122340.0,122330.0,0.2310325]
[1759975534714,0.15400677,122340.0,122330.0,0.9774325]
[1759975535813,0.15400677,122340.0,122330.0,0.92220115]
[1759975536013,0.15400677,122340.0,122330.0,1.0890023]
[1759975536213,0.12312677,122340.0,122330.0,1.0890023]
[1759975537315,0.15563677,122340.0,122330.0,0.3426023]
[1759975537515,0.15563677,122340.0,122330.0,1.0890423]
[1759975538011,0.15563677,122340.0,122330.0,0.3426023]
[1759975538316,0.15563677,122340.0,122330.0,0.9738023]
[1759975538812,0.15563677,122340.0,122330.0,0.3426023]
[1759975539016,0.15563677,122340.0,122330.0,1.0890423]
[1759975539717,0.15563677,122340.0,122330.0,1.0891223]
[1759975540914,0.15563677,122340.0,122330.0,0.3426023]
[1759975541315,0.72243792,122340.0,122330.0,0.17580115]
[1759975541816,0.72243792,122340.0,122330.0,0.87264115]
[1759975542018,0.72243792,122340.0,122330.0,0.17580115]
[1759975542218,0.72243792,122340.0,122330.0,0.87248115]
[1759975542409,0.15563677,122340.0,122330.0,0.92236115]
[1759975542607,0.33543792,122340.0,122330.0,0.16880115]
[1759975542809,0.16663677,122340.0,122330.0,0.91536115]
[1759975543010,0.16763677,122340.0,122330.0,0.91532115]
[1759975543315,0.73443792,122340.0,122330.0,0.002]
[1759975543510,0.33443792,122340.0,122330.0,0.53052115]
[1759975543715,0.16763677,122340.0,122330.0,0.002]
[1759975543912,0.16763677,122340.0,122330.0,0.5412823]
[1759975544120,0.13512677,122340.0,122330.0,1.0822023]
[1759975544622,0.05341197,122340.0,122330.0,1.1640438]
[1759975544820,0.05441197,122340.0,122330.0,1.5640438]
[1759975545021,0.05341197,122340.0,122330.0,1.5640438]
[1759975545220,0.05441197,122340.0,122330.0,1.5640438]
[1759975545618,0.05441197,122340.0,122330.0,0.98412495]
[1759975545814,0.0197,122350.0,122340.0,0.0817148]
[1759975546115,0.0197,122360.0,122350.0,0.0817082]
[1759975546321,0.01958,122350.0,122340.0,0.64851525]
[1759975546514,0.01958,122350.0,122340.0,1.72907755]
[1759975546714,0.01958,122350.0,122340.0,1.32907755]
[1759975547114,0.002,122350.0,122340.0,0.58211755]
[1759975547312,0.007,122350.0,122340.0,2.62503755]
[1759975547521,0.02658,122350.0,122340.0,3.37191755]
[1759975548122,0.1082882,122350.0,122340.0,0.58311755]
[1759975548418,0.1042882,122350.0,122340.0,3.37987755]
[1759975548621,0.1042882,122350.0,122340.0,3.37979755]
[1759975549525,0.02258,122350.0,122340.0,3.44572506]
[1759975550523,0.02258,122350.0,122340.0,0.65704506]
[1759975550918,0.02258,122350.0,122340.0,3.44548506]
[1759975551723,0.02258,122350.0,122340.0,0.65704506]
[1759975552023,0.02258,122350.0,122340.0,3.44548506]
[1759975552024,0.1042882,122350.0,122340.0,3.44548506]
[1759975553228,0.1042882,122350.0,122340.0,0.59111825]
[1759975553527,0.1350182,122350.0,122340.0,0.3426023]
[1759975553729,0.1350182,122350.0,122340.0,1.0453623]
[1759975554022,0.5350182,122350.0,122340.0,0.009]
[1759975554223,0.59313482,122350.0,122340.0,1.0891223]
[1759975554729,0.59313482,122350.0,122340.0,0.3426023]
[1759975554923,0.59313482,122350.0,122340.0,0.75552]
[1759975555124,0.70181935,122350.0,122340.0,0.17580115]
[1759975555428,0.70181935,122350.0,122340.0,0.16680115]
[1759975555618,0.77503628,122350.0,122340.0,0.85376115]
[1759975556022,0.70181935,122350.0,122340.0,0.91328115]
[1759975556319,0.77503628,122350.0,122340.0,0.91328115]
[1759975556520,0.60823513,122350.0,122340.0,0.91328115]
[1759975556726,0.1350182,122350.0,122340.0,1.0800423]
[1759975556925,0.1350182,122350.0,122340.0,1.0800823]
[1759975557622,0.1350182,122350.0,122340.0,0.3336023]
[1759975557826,0.15369438,122350.0,122340.0,1.0800423]
[1759975558028,0.15369438,122350.0,122340.0,0.3336023]
[1759975558326,0.21194808,122350.0,122340.0,0.3336023]
[1759975558731,0.21194808,122350.0,122340.0,1.0800023]
[1759975559234,0.21194808,122350.0,122340.0,0.3336023]
[1759975559529,0.21194808,122350.0,122340.0,1.0800023]
[1759975560029,0.21194808,122350.0,122340.0,0.4153171]
[1759975560230,0.09950988,122350.0,122340.0,1.32839825]
[1759975560421,0.04125618,122350.0,122340.0,1.32839825]
[1759975560628,0.04125618,122350.0,122340.0,0.98211825]
[1759975560822,0.02167618,122350.0,122340.0,0.98211825]
[1759975561023,0.02167618,122350.0,122340.0,1.72863825]
[1759975561229,0.02167618,122350.0,122340.0,0.98211825]
[1759975561430,0.04125618,122350.0,122340.0,1.72863825]
[1759975562834,0.02167618,122350.0,122340.0,0.98211825]
[1759975563134,0.04030618,122350.0,122340.0,1.72847825]
[1759975564435,0.04030618,122350.0,122340.0,1.794628]
[1759975566440,0.12201438,122350.0,122340.0,0.648268]
[1759975566836,0.12201438,122350.0,122340.0,1.394308]
[1759975574242,0.12201438,122350.0,122340.0,0.58211825]
[1759975574544,0.55462438,122350.0,122340.0,1.0790023]
[1759975574735,0.55462438,122350.0,122340.0,0.3336023]
[1759975575043,0.55462438,122350.0,122340.0,1.0791623]
[1759975576740,0.55462438,122350.0,122340.0,0.74556]
[1759975576940,0.55462438,122350.0,122340.0,1.0791623]
[1759975577141,0.55462438,122350.0,122340.0,1.1608771]
[1759975577641,0.55462438,122350.0,122340.0,1.1607571]
[1759975578040,0.55462438,122350.0,122340.0,0.4153171]
[1759975578243,0.55462438,122350.0,122340.0,1.1606771]
[1759975579740,0.55462438,122350.0,122340.0,0.3336023]
[1759975580042,0.55462438,122350.0,122340.0,1.0789623]
[1759975580236,0.55462438,122350.0,122340.0,1.1605571]
[1759975580546,0.04030618,122350.0,122340.0,0.58211825]
[1759975580839,0.0197,122370.0,122360.0,0.0817015]
[1759975581046,0.0197,122370.0,122360.0,0.58210495]
[1759975581241,0.0197,122370.0,122360.0,1.32750495]
[1759975581545,0.0197,122370.0,122360.0,1.32754495]
[1759975581746,0.05231,122370.0,122360.0,1.32754495]
[1759975582046,0.0207,122370.0,122360.0,1.33054495]
[1759975582344,0.0207,122370.0,122360.0,1.34458546]
[1759975582644,0.0227,122370.0,122360.0,1.33046495]
[1759975582844,0.0227,122370.0,122360.0,0.58510495]
[1759975583035,0.0227,122370.0,122360.0,1.34385222]
[1759975584145,0.0227,122370.0,122360.0,1.33046495]
[1759975585248,0.0227,122370.0,122360.0,1.34429128]
[1759975585542,0.0227,122370.0,122360.0,1.33046495]
[1759975585751,0.0227,122370.0,122360.0,1.0817623]
[1759975585752,0.1370048,122370.0,122360.0,1.0817623]
[1759975585941,0.1370048,122370.0,122360.0,0.3366023]
[1759975586243,0.1370048,122370.0,122360.0,1.0476423]
[1759975586636,0.1370048,122370.0,122360.0,0.3366023]
[1759975587039,0.1370048,122370.0,122360.0,1.0566423]
[1759975587548,0.1370048,122370.0,122360.0,0.3366023]
[1759975587850,0.1043948,122370.0,122360.0,1.1633438]
[1759975588142,0.1043948,122370.0,122360.0,0.4183038]
[1759975588446,0.1370048,122370.0,122360.0,1.1633038]
[1759975588845,0.1370048,122370.0,122360.0,0.4183038]
[1759975589045,0.1370048,122370.0,122360.0,1.1632238]
[1759975590144,0.1370048,122370.0,122360.0,0.4183038]
[1759975590352,0.1043948,122370.0,122360.0,1.1631438]
[1759975591753,0.1370048,122370.0,122360.0,0.4183038]
[1759975592051,0.1370048,122370.0,122360.0,1.1630238]
[1759975592746,0.15599053,122370.0,122360.0,0.3366023]
[1759975592952,0.72279168,122370.0,122360.0,0.003]
[1759975593148,0.72279168,122370.0,122360.0,0.91444115]
[1759975593952,0.55599053,122370.0,122360.0,0.91444115]
[1759975594254,0.72279168,122370.0,122360.0,0.16980115]
[1759975594449,0.55599053,122370.0,122360.0,0.3366023]
[1759975594755,0.52338053,122370.0,122360.0,1.0812823]
[1759975595150,0.52338053,122370.0,122360.0,0.4183038]
[1759975595345,0.52338053,122370.0,122360.0,1.1629838]
[1759975596153,0.52338053,122370.0,122360.0,0.4183038]
[1759975596345,0.52338053,122370.0,122360.0,1.1629438]
[1759975597853,0.12338053,122370.0,122360.0,1.33744938]
[1759975598158,0.04168573,122370.0,122360.0,1.33724938]
[1759975598956,0.12338053,122370.0,122360.0,1.33724938]
[1759975599955,0.12338053,122370.0,122360.0,1.33720938]
[1759975602250,0.12338053,122370.0,122360.0,1.33716938]
[1759975602451,0.04168573,122370.0,122360.0,1.33716938]
[1759975602758,0.04168573,122370.0,122360.0,1.33696938]
[1759975603356,0.04168573,122370.0,122360.0,0.59280938]
[1759975603557,0.04168573,122370.0,122360.0,1.33696938]
[1759975604153,0.04168573,122370.0,122360.0,0.8288615]
[1759975604457,0.04168573,122370.0,122360.0,1.33696938]
[1759975604752,0.04168573,122370.0,122360.0,0.59280938]
[1759975605257,0.04168573,122370.0,122360.0,1.33684938]
[1759975608358,0.04168573,122370.0,122360.0,1.33664938]
[1759975609453,0.02198573,122370.0,122360.0,0.59280938]
[1759975609854,0.02198573,122370.0,122360.0,2.63428938]
[1759975610054,0.02198573,122370.0,122360.0,3.37800938]
[1759975610254,0.04057573,122370.0,122360.0,0.59280938]
[1759975610455,0.04057573,122370.0,122360.0,3.37800938]
[1759975611558,0.02198573,122370.0,122360.0,3.37800938]
[1759975612253,0.01863,122390.0,122380.0,0.0816881]
[1759975612558,0.01863,122400.0,122390.0,0.0816815]
[1759975612759,0.01863,122400.0,122390.0,1.33350938]
[1759975612961,0.01863,122400.0,122390.0,1.07945544]
[1759975613657,0.01863,122400.0,122390.0,0.58978938]
[1759975613859,0.01863,122400.0,122390.0,1.33346938]
[1759975614255,0.01863,122400.0,122390.0,1.34677935]
[1759975614460,0.02463,122400.0,122390.0,1.34677935]
[1759975614855,0.02463,122400.0,122390.0,1.33446938]
[1759975615055,0.02163,122400.0,122390.0,0.59078938]
[1759975615256,0.02163,122400.0,122390.0,1.08025544]
[1759975615756,0.02563,122400.0,122390.0,1.08125544]
[1759975618164,0.02563,122400.0,122390.0,0.33773544]
[1759975618364,0.02563,122400.0,122390.0,1.08105544]
[1759975619061,0.02563,122400.0,122390.0,0.40400191]
[1759975619564,0.02563,122400.0,122390.0,1.14724191]
[1759975620460,0.02563,122400.0,122390.0,1.14716191]
[1759975620762,0.5362048,122400.0,122390.0,0.002]
[1759975620960,0.5362048,122400.0,122390.0,0.7452]
[1759975621161,0.5362048,122400.0,122390.0,0.99925394]
[1759975623265,0.5362048,122400.0,122390.0,0.25605394]
[1759975623467,0.5362048,122400.0,122390.0,0.99933394]
[1759975624277,0.55547851,122400.0,122390.0,0.99933394]
[1759975624877,0.55547851,122400.0,122390.0,0.25605394]
[1759975625072,0.55547851,122400.0,122390.0,0.99305394]
[1759975625268,0.55547851,122400.0,122390.0,0.25605394]
[1759975625474,0.55547851,122400.0,122390.0,0.99277394]
[1759975625775,0.80953245,122400.0,122380.0,0.25405394]
[1759975625977,0.80953245,122400.0,122360.0,2.30556]
[1759975625978,0.1002848,122370.0,122360.0,2.30556]
[1759975626182,0.11955851,122370.0,122360.0,3.55674788]
[1759975626376,0.11955851,122370.0,122360.0,2.63096938]
[1759975626578,0.11955851,122370.0,122360.0,3.37404938]
[1759975627480,0.03786371,122370.0,122360.0,3.37404938]
[1759975627683,0.03786371,122370.0,122360.0,2.63096938]
[1759975627884,0.03786371,122370.0,122360.0,3.37408938]
[1759975628073,0.03786371,122370.0,122360.0,2.63096938]
[1759975628275,0.03786371,122370.0,122360.0,3.37404938]
[1759975628782,0.03886371,122370.0,122360.0,3.37804938]
[1759975628971,0.03986371,122370.0,122360.0,3.37904938]
[1759975630182,0.03986371,122370.0,122360.0,3.37896938]
[1759975631380,0.15155851,122370.0,122360.0,0.51310788]
[1759975631576,0.15155851,122370.0,122360.0,1.25610788]
[1759975631781,0.15155851,122370.0,122360.0,0.25905394]
[1759975631984,0.15155851,122370.0,122360.0,1.00197394]
[1759975632682,0.15155851,122370.0,122360.0,0.25905394]
[1759975632882,0.15155851,122370.0,122360.0,0.66261394]
[1759975633078,0.15155851,122370.0,122360.0,0.25905394]
[1759975633279,0.15155851,122370.0,122360.0,1.00221394]
[1759975637386,0.15155851,122370.0,122360.0,1.00201394]
[1759975640789,0.15155851,122370.0,122360.0,1.36281394]
[1759975642591,0.15155851,122370.0,122360.0,1.36257394]
[1759975643092,0.15155851,122370.0,122360.0,1.36253394]
[1759975645494,0.15155851,122370.0,122360.0,0.61985394]
[1759975645694,0.15155851,122370.0,122360.0,1.36241394]
[1759975647498,0.15155851,122370.0,122360.0,1.00161394]
[1759975650191,0.15155851,122370.0,122360.0,0.25905394]
[1759975650392,0.51235851,122370.0,122360.0,0.005]
[1759975650697,0.91235851,122370.0,122360.0,0.74732]
[1759975651200,0.91235851,122370.0,122360.0,0.005]
[1759975651399,0.91235851,122370.0,122360.0,0.74736]
[1759975652295,0.91235851,122370.0,122360.0,0.005]
[1759975652798,1.16641245,122370.0,122360.0,0.74732]
[1759975653200,0.91235851,122370.0,122360.0,0.74732]
[1759975653499,0.91235851,122370.0,122360.0,0.74728]
[1759975654295,0.97061221,122370.0,122360.0,0.005]
[1759975654599,0.97061221,122370.0,122360.0,0.74724]
[1759975654994,0.97061221,122370.0,122360.0,0.005]
[1759975655399,0.91235851,122370.0,122360.0,0.7472]
[1759975657300,0.91235851,122370.0,122360.0,0.005]
[1759975657500,0.91235851,122370.0,122360.0,0.69436]
[1759975658000,1.10297619,122370.0,122360.0,0.88497768]
[1759975659008,1.10297619,122370.0,122360.0,0.19561768]
[1759975659507,1.10297619,122370.0,122360.0,0.93765768]
[1759975660506,0.91235851,122370.0,122360.0,0.93765768]
[1759975660705,1.10297619,122370.0,122360.0,0.19561768]
[1759975660906,1.10297619,122370.0,122360.0,0.93761768]
[1759975661308,1.10297619,122370.0,122360.0,0.19561768]
[1759975661510,1.17619312,122370.0,122360.0,0.74696]
[1759975661810,1.10297619,122370.0,122360.0,0.93757768]
[1759975662414,0.70297619,122370.0,122360.0,0.93757768]
[1759975662708,0.77619312,122370.0,122360.0,0.93757768]
[1759975663311,0.77619312,122370.0,122360.0,0.74696]
[1759975663812,0.77619312,122370.0,122360.0,0.93757768]
[1759975664008,0.70297619,122370.0,122360.0,0.93749768]
[1759975664211,0.70297619,122370.0,122360.0,0.19561768]
[1759975664407,0.76134024,122370.0,122360.0,0.93745768]
[1759975664607,0.76134024,122370.0,122360.0,0.93741768]
[1759975665108,0.76134024,122370.0,122360.0,0.19561768]
[1759975665311,0.76134024,122370.0,122360.0,0.93741768]
[1759975667814,0.76134024,122370.0,122360.0,0.005]
[1759975668014,0.76134024,122370.0,122360.0,0.93733768]
[1759975668514,0.76134024,122370.0,122360.0,0.93729768]
[1759975668707,0.76134024,122370.0,122360.0,0.88773475]
[1759975668911,0.76134024,122370.0,122360.0,0.14605475]
[1759975669111,0.76134024,122370.0,122360.0,0.88793475]
[1759975669806,0.04692,122340.0,122330.0,0.50877001]
[1759975670116,0.04692,122330.0,122320.0,0.3608]
[1759975670319,0.06619371,122330.0,122320.0,0.3608]
[1759975670506,0.06619371,122330.0,122320.0,1.48387536]
[1759975670710,0.06619371,122330.0,122320.0,1.10264]
[1759975671108,0.06619371,122330.0,122320.0,1.48387536]
[1759975671311,0.07019371,122330.0,122320.0,1.15707536]
[1759975671714,0.07019371,122330.0,122320.0,0.77584]
[1759975672020,0.08220358,122330.0,122320.0,0.41523536]
[1759975672322,0.08220358,122330.0,122320.0,1.15719536]
[1759975672619,0.08420358,122330.0,122320.0,0.77696]
[1759975672820,0.07219371,122330.0,122320.0,1.15819536]
[1759975673216,0.07219371,122330.0,122320.0,0.77696]
[1759975673422,0.07219371,122330.0,122320.0,0.22561768]
[1759975673717,0.43299371,122330.0,122320.0,0.77696]
[1759975674019,0.62361139,122330.0,122320.0,0.92130783]
[1759975674216,0.01766,122320.0,122310.0,0.40764571]
[1759975674421,0.06619371,122320.0,122310.0,1.34054339]
[1759975674814,0.06619371,122320.0,122310.0,0.59826339]
[1759975675015,0.06619371,122320.0,122310.0,1.34058339]
[1759975675322,0.06619371,122320.0,122310.0,1.14996571]
[1759975675623,0.06819371,122320.0,122310.0,1.34058339]
[1759975676220,0.06819371,122320.0,122310.0,1.53120107]
[1759975676412,0.06719371,122320.0,122310.0,1.53120107]
[1759975676612,0.07219371,122320.0,122310.0,1.53620107]
[1759975677118,0.07719371,122320.0,122310.0,1.34302339]
[1759975678218,0.07719371,122320.0,122310.0,0.60026339]
[1759975678524,0.07719371,122320.0,122310.0,1.34302339]
[1759975678824,0.07719371,122320.0,122310.0,0.60026339]
[1759975679021,0.07719371,122320.0,122310.0,1.34298339]
[1759975680424,0.15892191,122320.0,122310.0,0.60026339]
[1759975680620,0.34953959,122320.0,122310.0,0.98218339]
[1759975680822,0.15892191,122320.0,122310.0,0.98218339]
[1759975681724,0.15892191,122320.0,122310.0,0.04884571]
[1759975681919,1.11033959,122320.0,122310.0,0.04884571]
[1759975682114,1.35932132,122320.0,122310.0,0.04884571]
[1759975682321,1.30095727,122320.0,122310.0,0.04884571]
[1759975682516,1.35932132,122320.0,122310.0,0.04884571]
[1759975683219,0.1283682,122290.0,122280.0,0.55141768]
[1759975683522,0.69905959,122290.0,122270.0,0.1984597]
[1759975683728,0.59803768,122280.0,122270.0,0.1984597]
[1759975684024,0.61731139,122280.0,122270.0,0.9414597]
[1759975684221,0.42669371,122280.0,122270.0,0.1984597]
[1759975684424,0.49101863,122280.0,122270.0,0.9414997]
[1759975685220,0.21597353,122280.0,122270.0,0.38907738]
[1759975685524,0.04371371,122280.0,122270.0,1.97487898]
[1759975686419,0.12546861,122280.0,122270.0,1.97487898]
[1759975687622,0.12546861,122280.0,122270.0,1.89311738]
[1759975687819,0.12546861,122280.0,122270.0,1.7024997]
[1759975688823,0.15364861,122280.0,122270.0,0.5984597]
[1759975689125,0.15364861,122280.0,122270.0,1.3416597]
[1759975689328,0.15364861,122280.0,122270.0,0.9416597]
[1759975689528,0.34426629,122280.0,122270.0,0.75112202]
[1759975689725,0.34426629,122280.0,122270.0,0.9417397]
[1759975690425,0.34426629,122280.0,122270.0,0.1984597]
[1759975690626,0.34426629,122280.0,122270.0,0.9417397]
[1759975690826,0.36326629,122280.0,122270.0,0.9417397]
[1759975691422,0.17164861,122280.0,122270.0,0.9417397]
[1759975691625,0.36226629,122280.0,122270.0,0.9417397]
[1759975692123,0.36226629,122280.0,122270.0,0.75112202]
[1759975692331,0.53244861,122280.0,122270.0,0.00784202]
[1759975692624,0.17164861,122280.0,122270.0,0.00784202]
[1759975692924,1.29324861,122280.0,122270.0,0.1984597]
[1759975693330,1.29324861,122280.0,122270.0,0.75116202]
[1759975693823,1.48386629,122280.0,122270.0,0.9417797]
[1759975694231,0.93244861,122280.0,122270.0,0.96308499]
[1759975694624,1.12306629,122280.0,122270.0,0.77246731]
[1759975694819,0.93244861,122280.0,122270.0,0.96308499]
[1759975695020,1.12306629,122280.0,122270.0,0.96308499]
[1759975695220,0.93244861,122280.0,122270.0,0.77246731]
[1759975695432,0.53244861,122280.0,122270.0,0.21976499]
[1759975695927,0.53244861,122280.0,122270.0,0.96304499]
[1759975696128,0.59081266,122280.0,122270.0,0.96304499]
[1759975696330,0.23001266,122280.0,122270.0,0.96304499]
[1759975696626,0.17164861,122280.0,122270.0,0.96304499]
[1759975696824,0.61164861,122280.0,122270.0,0.96304499]
[1759975697332,0.67001266,122280.0,122270.0,0.96304499]
[1759975697730,0.61164861,122280.0,122270.0,0.96304499]
[1759975697932,0.97244861,122280.0,122270.0,0.96304499]
[1759975698132,1.16306629,122280.0,122270.0,0.02914731]
[1759975698328,1.16306629,122280.0,122270.0,0.77230731]
[1759975698724,1.35368397,122280.0,122270.0,0.02914731]
[1759975698927,1.35368397,122280.0,122270.0,0.77230731]
[1759975699922,1.35368397,122280.0,122270.0,0.02914731]
[1759975700930,1.75368397,122280.0,122270.0,0.02914731]
[1759975701325,1.8269009,122280.0,122270.0,0.02914731]
[1759975701531,0.01844,122270.0,122260.0,0.72982366]
[1759975701725,0.61731139,122270.0,122260.0,0.72982366]
[1759975701925,0.1002217,122240.0,122230.0,0.04684571]
[1759975702133,0.06589371,122240.0,122230.0,1.34198339]
[1759975702434,0.73791437,122240.0,122230.0,0.04684571]
[1759975702630,0.69909309,122240.0,122230.0,0.04684571]
[1759975702835,0.69909309,122240.0,122230.0,0.23746339]
[1759975703034,0.71089304,122240.0,122230.0,0.04684571]